Cogmind - Beta 13 @@@ ROGUE MODE // 2024.04.25 @ 10:24:06 Player: monkeman Result: Destroyed by P-60 Hacker with Shock Rifle Performance ------------- Evolutions (3) 1500 Regions Visited (6) 1200 Robots Destroyed (129) 645 Value Destroyed (4087) 4087 Prototype IDs (10) 200 Alien Tech Used (0) 0 Bonus (1119) 1119 TOTAL SCORE: 8751 Bonus ------- High Alert Combat Kills 752 Follower Combat Kills 188 Entered Garrisons 200 Friendly Fire -21 Cogmind --------- Core Integrity 0/700 Matter 173/300 Energy 97/100 System Corruption 17% Temperature Cool (0) Movement Treading (385) Ox3 Location -7/Factory Parts ------- > --- POWER (1) -------- (None) > --- PROPULSION (4) --- Advanced Treads > --- UTILITY (4) ------ Huge Storage Unit Component Analysis Suite > --- WEAPON (4) ------- Heavy Flail > --- INVENTORY (25) --- Light Treads Improved Heat Sink Cooling System Large Matter Pod (150) Improved Signal Interpreter Improved Terrain Scanner Seismic Detector Advanced Targeting Computer Improved Particle Charger Kinecellerator Improved Shield Generator Hacking Suite Long-range Tractor Beam Faulty Heavy EM Shotgun Advanced Assault Cannon Mini Grenade Launcher Peak State ------------ > --- POWER ------------ Heavy Ion Engine > --- PROPULSION ------- Light Treads Advanced Treads Armored Wheel Armored Wheel > --- UTILITY ---------- Huge Storage Unit Advanced Targeting Computer Light Armor Plating Component Analysis Suite > --- WEAPON ----------- Plasma Rifle Gauss Rifle Gauss Rifle Flak Gun > --- INVENTORY -------- Improved Ion Engine Light Treads Advanced Treads Armored Wheel Improved Heat Sink Cooling System Large Matter Pod Improved Signal Interpreter Improved Terrain Scanner Seismic Detector Advanced Targeting Computer Improved Particle Charger Kinecellerator Improved Light Armor Plating Improved Shield Generator Hacking Suite Long-range Tractor Beam Heavy EM Shotgun Plasma Rifle Beamcaster Advanced Assault Cannon Rocket Launcher Mini Grenade Launcher Heavy Flail [Rating: 44] Favorites ----------- Power Ion Engine Engine Ion Engine Propulsion Light Treads Treads Light Treads Wheel Armored Wheel Utility Huge Storage Unit Device Improved Terrain Scanner Storage Huge Storage Unit Processor Advanced Targeting Computer Hackware Hacking Suite Protection Medium Armor Plating Weapon Improved Assault Rifle Energy Gun Improved Medium Laser Energy Cannon Beam Cannon Ballistic Gun Improved Assault Rifle Ballistic Cannon Assault Cannon Launcher Grenade Launcher Special Weapon Welding Torch Impact Weapon Heavy Flail Build | -11 -10 -9 -9 -8 -8 -7 ------- Run | Yrd Mat Mat Min Mat Gar Fac Slots Evolved 6 | . . 2 . 2 . 2 Power . | . . . . . . . Propulsion 2 | . . 1 . . . 1 Utility 2 | . . 1 . 1 . . Weapon 2 | . . . . 1 . 1 Parts Attached 106 | 6 14 16 2 15 37 16 Power 6 | 1 1 1 . 1 1 1 Engine 6 | 1 1 1 . 1 1 1 Core . | . . . . . . . Reactor . | . . . . . . . Propulsion 20 | 2 1 4 . 3 6 4 Treads 13 | 2 1 2 . 2 4 2 Leg . | . . . . . . . Wheel 7 | . . 2 . 1 2 2 Hover . | . . . . . . . Flight . | . . . . . . . Utility 29 | 1 5 5 . 4 10 4 Device 14 | . 2 . . 3 6 3 Storage 3 | 1 2 . . . . . Processor 2 | . . 2 . . . . Hackware 1 | . 1 . . . . . Protection 9 | . . 3 . 1 4 1 Artifact . | . . . . . . . Weapon 51 | 2 7 6 2 7 20 7 Energy Gun 8 | 1 . . . 2 3 2 Energy Cannon 7 | . 2 1 1 1 2 . Ballistic Gun 18 | 1 2 4 . 2 6 3 Ballistic Cannon 4 | . . . . . 4 . Launcher 9 | . 2 1 1 2 2 1 Special Weapon 1 | . 1 . . . . . Impact Weapon 4 | . . . . . 3 1 Slashing Weapon . | . . . . . . . Piercing Weapon . | . . . . . . . Special Melee Weapon . | . . . . . . . Unidentified Prototypes . | . . . . . . . Parts Lost 37 | . 1 3 . 3 12 18 Power 4 | . 1 . . . 1 2 Propulsion 10 | . . 2 . 2 1 5 Utility 11 | . . 1 . . 6 4 Weapon 12 | . . . . 1 4 7 Highest Loss Streak 17 | . 1 1 . 1 4 17 To Critical Strikes . | . . . . . . . Average Slot Usage (%) 98 | . 98 99 100 97 99 91 Engine 11 | . 13 11 11 9 9 6 Treads 22 | . 28 22 22 17 17 13 Wheel 6 | . . 10 11 8 9 13 Device 5 | . 4 4 . 8 9 6 Storage 11 | . 14 11 11 9 9 7 Processor 4 | . . 6 11 9 9 6 Hackware 3 | . 8 . . . . . Protection 5 | . . 10 11 9 8 6 Energy Gun 4 | . 4 . . 6 6 6 Energy Cannon 7 | . 9 10 10 3 3 . Ballistic Gun 10 | . 8 11 11 15 9 20 Ballistic Cannon 1 | . . . . . 5 . Launcher 2 | . 5 . . . 1 . Naked Turns . | . . . . . . . Heaviest Build 109 | 13 92 102 102 109 109 109 Greatest Support 42 | 40 40 40 10 40 42 42 Greatest Overweight (x) 10 | . 2 10 10 10 8 8 Average Overweight (x) 5 | . 1 8 10 8 7 4 Largest Inventory Capacity 25 | 8 25 25 25 25 25 25 Average Capacity 23 | 7 21 25 25 25 25 25 Most Carried 25 | 3 18 25 25 25 25 25 Average Carried 19 | 2 15 23 24 24 22 23 Final Capacity 25 | 8 25 25 25 25 25 25 Final Carried 25 | 3 18 25 25 25 23 16 Class Distribution -------------------- 65% | Mutant 19% | Tank 7% | Scavenger-Gunner 4% | Gunner Dominant Class ---------------- Mutant | -10/Materials Mutant | -9/Materials Mutant | -9/Mines Tank | -8/Materials Tank | -8/Garrison Scavenger-Gunner | -7/Factory Resources | -11 -10 -9 -9 -8 -8 -7 ----------- Run | Yrd Mat Mat Min Mat Gar Fac Matter Collected 2959 | 274 455 342 36 584 883 385 Remotely . | . . . . . . . Salvage Created 5352 | 134 648 636 37 1262 1901 734 Parts 270 | 3 44 35 4 72 67 45 Haulers Intercepted 8 | . 2 4 . 1 . 1 Recyclers Shooed 1 | . . 1 . . . . Parts Field Recycled . | . . . . . . . Retrieved Matter . | . . . . . . . Parts Self-Destructed . | . . . . . . . Prevented . | . . . . . . . Kills | -11 -10 -9 -9 -8 -8 -7 ------- Run | Yrd Mat Mat Min Mat Gar Fac Combat Hostiles Destroyed 95 | . 16 12 4 23 25 15 Guns 64 | . 14 4 1 17 13 15 Cannons 17 | . . 6 . 3 8 . AOE 14 | . 2 2 3 3 4 . Classes Destroyed 16 | 2 6 2 . 2 2 2 Worker 5 | . 3 . . 2 . . Tunneler 4 | 2 1 . . . . 1 Hauler 8 | . 2 4 . 1 . 1 Recycler 4 | 1 . . . 2 . 1 Mechanic 1 | . . . . 1 . . Operator 6 | . 1 2 . 2 . 1 Watcher 6 | . 3 1 . 2 . . Swarmer 37 | . 9 4 4 7 6 7 Grunt 29 | . 7 6 . 8 6 2 Brawler 1 | . . 1 . . . . Duelist 2 | . . . . . 1 1 Sentry 18 | . . 1 . 6 10 1 Specialist 1 | . . . . . . 1 Hunter 4 | . . . . 2 1 1 Programmer 2 | . . . . . . 2 Behemoth 1 | . . . . . 1 . Best Kill Streak 7 | 1 6 6 4 7 3 5 Combat Bots Only 6 | . 6 6 4 5 3 4 Max Kills in Single Turn 4 | 1 4 2 4 2 3 2 Gunslinging 1 | . . . . 1 . . Exploded 3 | . 2 2 3 2 3 . Melee . | . . . . . . . Uniques/NPCs Destroyed . | . . . . . . . Combat | -11 -10 -9 -9 -8 -8 -7 -------- Run | Yrd Mat Mat Min Mat Gar Fac Hostile Shots Fired 714 | . 59 58 12 140 209 236 Missed 192 | . 16 16 2 35 46 77 Damage Taken 6719 | . 468 469 98 1130 1927 2627 Core 1362 | . 114 56 7 145 333 707 Absorbed by Shields 819 | . . . . 383 436 . Core Remaining (%) 62 | 100 54 . 84 . 13 . Volleys Fired 346 | 14 84 54 2 63 85 44 Largest 4 | 2 2 2 2 3 3 4 Hottest 172 | 70 80 91 91 151 172 154 Shots Fired 815 | 28 151 106 4 172 220 134 Gun 653 | 28 126 55 2 155 154 133 Cannon 136 | . 16 48 1 12 59 . Launcher 23 | . 6 3 1 5 7 1 Special 3 | . 3 . . . . . Kinetic 477 | 14 68 55 2 113 130 95 Thermal 315 | 14 77 48 1 54 83 38 Explosive 23 | . 6 3 1 5 7 1 Electromagnetic . | . . . . . . . Robot Hit Streak 63 | 9 13 15 10 24 63 17 Robot Miss Streak 4 | 3 3 3 1 4 3 4 Penetration Max 1 | . . . . . . 1 Secondary Targets 10 | . 3 . . 6 . 1 Max Gunslinging Chain 2 | . 1 . . 2 . 1 Shots Hit Robots 580 | 18 101 71 3 123 172 92 Core Hits 251 | 6 42 26 5 59 64 49 Critical Kills 3 | . . . . . 3 . Critical Parts Destroyed 3 | . 1 . . . 1 1 Critical Strikes 24 | 1 6 . . 2 10 5 Burn 17 | 1 5 . . 2 5 4 Destroy 2 | . 1 . . . . 1 Blast 1 | . . . . . 1 . Smash 4 | . . . . . 4 . Melee Attacks 23 | . . . . . 22 1 Impact 23 | . . . . . 22 1 Slashing . | . . . . . . . Piercing . | . . . . . . . Sneak Attacks . | . . . . . . . Combat Hostiles . | . . . . . . . Follow-up Attacks . | . . . . . . . Damage Inflicted 12986 | 184 1308 1359 281 2665 5062 2127 Guns 7499 | 184 1008 609 27 1930 1962 1779 Cannons 1820 | . 174 668 21 205 752 . Explosions 1924 | . 112 82 233 530 689 278 Melee 1719 | . . . . . 1652 67 Ramming 24 | . 14 . . . 7 3 Kinetic 5182 | 72 424 609 27 1328 1511 1211 Thermal 4137 | 112 758 668 21 807 1203 568 Explosive 1924 | . 112 82 233 530 689 278 Electromagnetic . | . . . . . . . Impact 1719 | . . . . . 1652 67 Slashing . | . . . . . . . Piercing . | . . . . . . . Highest Corruption 17 | . . . . . . 17 Average Corruption 6 | . . . . . . 6 Corruption Purged . | . . . . . . . Corruption Blocked . | . . . . . . . Effects 3 | . . . . . . 3 Matter Fused 1 | . . . . . . 1 Energy Discharges 1 | . . . . . . 1 Weapon Failures 1 | . . . . . . 1 Overload Shots . | . . . . . . . Overflow Damage 288 | . . . 41 42 205 . Projectiles . | . . . . . . . Explosions 83 | . . . 41 42 . . Melee 205 | . . . . . 205 . Knockbacks 8 | . . . . . 7 1 Impact 5 | . . . . . 4 1 Kinetic 2 | . . . . . 2 . Secondary 1 | . . . . . 1 . Self-Inflicted Damage 298 | . 47 . 20 74 157 . Shots 11 | . 2 . 1 2 6 . Rammed 4 | . 2 . . . 1 1 Targets Rammed 4 | . 2 . . . 1 1 Kicked . | . . . . . . . Crushed . | . . . . . . . Highest Temperature 542 | 130 140 243 33 286 542 237 Average Temperature 83 | 56 41 66 20 93 135 42 Received Heat Transfer 1301 | . 150 195 . 317 522 117 Effects 8 | . . . . . 7 1 Energy Bleed 1 | . . . . . . 1 Interference 1 | . . . . . 1 . Matter Decay 1 | . . . . . 1 . Damage (major) 4 | . . . . . 4 . Damage (core) 1 | . . . . . 1 . Siege Activations . | . . . . . . . Robots Corrupted . | . . . . . . . Combat Hostiles . | . . . . . . . Parts Fried 2 | . . . . . 2 . Impact Corruptions 5 | . . . . . 5 . Robots Melted . | . . . . . . . Combat Hostiles . | . . . . . . . Parts Melted 17 | . 9 . . 4 . 4 Heat Transferred 10053 | 407 2405 1221 37 1776 2726 1481 Parts Sabotaged . | . . . . . . . Parts Stolen . | . . . . . . . Parts Stripped . | . . . . . . . Power Chain Reactions . | . . . . . . . Alert | -11 -10 -9 -9 -8 -8 -7 ------- Run | Yrd Mat Mat Min Mat Gar Fac Peak Influence 1366 | 15 265 224 122 456 1366 909 Initial 716 | . 9 . 19 . 284 716 Average 277 | 4 69 70 63 216 792 794 Maximum Alert Level 4 | . 1 1 . 2 4 3 Low Security (%) 61 | 100 88 90 100 46 . . Level 1 13 | . 11 9 . 48 13 . Level 2 6 | . . . . 4 32 1 Level 3 11 | . . . . . 24 98 Level 4 5 | . . . . . 29 . Level 5 . | . . . . . . . High Security . | . . . . . . . Max Security . | . . . . . . . Squads Dispatched 10 | . 3 1 . 5 . 1 Investigation 2 | . 2 . . . . . Extermination 1 | . . . . . . 1 Reinforcement 5 | . 1 1 . 3 . . Assault . | . . . . . . . Garrison 2 | . . . . 2 . . Intercept . | . . . . . . . Searches Triggered . | . . . . . . . Construction Impeded . | . . . . . . . Haulers Reinforced . | . . . . . . . Active Scanning Responses . | . . . . . . . Cargo Convoy Interrupts 1 | . . . . . . 1 Stealth | -11 -10 -9 -9 -8 -8 -7 --------- Run | Yrd Mat Mat Min Mat Gar Fac Distress Signals 7 | . 4 1 . 2 . . Communications Jammed . | . . . . . . . Distress Signals . | . . . . . . . Times Spotted 150 | . 21 19 4 39 37 30 Peak Tracking Total 9 | . 7 4 4 8 6 9 Tactical Retreats 9 | . 1 . . 1 3 4 Traps | -11 -10 -9 -9 -8 -8 -7 ------- Run | Yrd Mat Mat Min Mat Gar Fac Traps Triggered 7 | . . . . . 7 . Indirectly . | . . . . . . . Trap Hack Attempts . | . . . . . . . Triggered . | . . . . . . . Disarmed . | . . . . . . . Reprogrammed . | . . . . . . . Reused . | . . . . . . . Traps Extracted . | . . . . . . . Installed . | . . . . . . . Triggered . | . . . . . . . Machines | -11 -10 -9 -9 -8 -8 -7 ---------- Run | Yrd Mat Mat Min Mat Gar Fac Machines Disabled 6 | . . 1 . 1 4 . Max in Single Turn 1 | . . 1 . 1 1 . Garrison Relay 3 | . . . . . 3 . Machines Repaired . | . . . . . . . Machines Dismantled . | . . . . . . . Machines Sabotaged . | . . . . . . . Overloaded Fab Kills . | . . . . . . . Hacking | -11 -10 -9 -9 -8 -8 -7 --------- Run | Yrd Mat Mat Min Mat Gar Fac Machines Accessed 18 | . 9 4 . 2 2 1 Terminals 15 | . 7 4 . 1 2 1 Fabricators . | . . . . . . . Repair Stations . | . . . . . . . Recycling Units 2 | . 2 . . . . . Scanalyzers . | . . . . . . . Garrison Access 1 | . . . . 1 . . Total Hacks 47 | . 24 13 . 3 4 3 Successful 25 | . 15 5 . 1 1 3 Failed 22 | . 9 8 . 2 3 . Catastrophic 4 | . 1 1 . 1 1 . Database Lockouts . | . . . . . . . Manual 28 | . 18 9 . 1 . . Terminals 41 | . 20 13 . 1 4 3 Fabricators . | . . . . . . . Repair Stations . | . . . . . . . Recycling Units 4 | . 4 . . . . . Scanalyzers . | . . . . . . . Garrison Access 2 | . . . . 2 . . Terminal Hacks 18 | . 10 4 . . 1 3 Robot Schematic 1 | . 1 . . . . . Robot Analysis 6 | . 5 1 . . . . Prototype ID Bank 4 | . 3 . . . . 1 Open Door 1 | . . . . . 1 . Branch Access Points 2 | . . 1 . . . 1 Locate Traps 3 | . 1 2 . . . . Zone Layout 1 | . . . . . . 1 Fabricator Hacks . | . . . . . . . Repair Station Hacks . | . . . . . . . Recycling Unit Hacks 2 | . 2 . . . . . Report Inventory 1 | . 1 . . . . . Retrieve Components 1 | . 1 . . . . . Scanalyzer . | . . . . . . . Garrison Access Hacks 1 | . . . . 1 . . Unlock Access 1 | . . . . 1 . . Unauthorized Hacks 4 | . 3 1 . . . . Terminals 2 | . 1 1 . . . . Botnet 2 | . 1 1 . . . . Fabricators . | . . . . . . . Repair Stations . | . . . . . . . Recycling Units 2 | . 2 . . . . . Tunnel 2 | . 2 . . . . . Scanalyzers . | . . . . . . . Garrison Access . | . . . . . . . Data Cores Recovered 2 | . . 1 . . . 1 Used 1 | . . . . . . 1 Hacking Detections 17 | . 9 3 . 2 2 1 Full Trace Events 1 | . . . . . 1 . Feedback Events . | . . . . . . . Feedback Blocked . | . . . . . . . Robot Schematics Acquired 1 | . 1 . . . . . Robots Built . | . . . . . . . Authchips . | . . . . . . . Time . | . . . . . . . Total Robot Build Rating . | . . . . . . . Part Schematics Acquired . | . . . . . . . Parts Built . | . . . . . . . Authchips . | . . . . . . . Time . | . . . . . . . Total Part Build Rating . | . . . . . . . Parts Repaired . | . . . . . . . Time . | . . . . . . . Parts Recycled . | . . . . . . . Recycled Matter . | . . . . . . . Retrieved Matter . | . . . . . . . Retrieved Components 1 | . 1 . . . . . Parts Scanalyzed . | . . . . . . . Part Schematics Acquired . | . . . . . . . Parts Damaged . | . . . . . . . Bothacking | -11 -10 -9 -9 -8 -8 -7 ------------ Run | Yrd Mat Mat Min Mat Gar Fac Used RIF Installer . | . . . . . . . Robots Hacked . | . . . . . . . Non-combat . | . . . . . . . Combat . | . . . . . . . Robot Hacks Applied . | . . . . . . . Relay Couplers Released 12 | . . . . . 12 . Machine Destruction 12 | . . . . . 12 . Fabnet Peak Effective % . | . . . . . . . Robots Rewired 3 | . . . . . 3 . Allies Hacked . | . . . . . . . Hacks Repelled . | . . . . . . . Allies | -11 -10 -9 -9 -8 -8 -7 -------- Run | Yrd Mat Mat Min Mat Gar Fac Total Allies 8 | . . . 3 . 5 . Largest Group 4 | . . . 3 3 4 . Highest-Rated Group 101 | . . . 40 40 101 . Highest-Rated Ally 31 | . . . 16 16 31 . Total Orders . | . . . . . . . Ally Attacks 69 | . . . . 21 48 . Total Damage 939 | . . . . 182 757 . Kills 10 | . . . . 2 8 . Allies Corrupted . | . . . . . . . Allies Melted . | . . . . . . . Intel | -11 -10 -9 -9 -8 -8 -7 ------- Run | Yrd Mat Mat Min Mat Gar Fac Robot Analysis Total 6 | . 5 1 . . . . Derelict Logs Recovered 3 | . . . 3 . . . Drone Launches . | . . . . . . . Drone Recoveries . | . . . . . . . Exploration | -11 -10 -9 -9 -8 -8 -7 ------------- Run | Yrd Mat Mat Min Mat Gar Fac Turns Passed 8700 | 143 3497 1034 758 936 1702 630 Spaces Moved 3116 | 62 1173 374 326 292 614 275 Core 6 | 6 . . . . . . Treads 1272 | 56 1173 8 . 24 8 3 Legs . | . . . . . . . Wheels 1838 | . . 366 326 268 606 272 Hover . | . . . . . . . Flight . | . . . . . . . Fastest Speed 50 | 50 160 190 230 190 190 150 Average Speed 230 | 149 271 215 230 230 205 153 Slowest Speed 560 | 160 320 320 230 560 320 385 Overloaded Moves . | . . . . . . . Propulsion Burnouts . | . . . . . . . Robots Hopped . | . . . . . . . Cave-ins Triggered . | . . . . . . . Exploration Rate (%) 42 | 4 98 31 64 27 63 7 Regions Visited 6 Branch Regions 1 Pre-discovered Areas 2 | . 2 . . . . . Known Exits Taken 3 | . . 1 1 1 . . Unknown Exits Taken 2 | 1 1 . . . . . Scrap Searched . | . . . . . . . Spaces Dug . | . . . . . . . Terrain Destroyed 156 | . 20 16 16 77 27 . Melee . | . . . . . . . Projectile 2 | . . . . . 2 . AOE 154 | . 20 16 16 77 25 . Terrain Rammed . | . . . . . . . Walls Destroyed . | . . . . . . . Machines Disabled . | . . . . . . . Actions | -11 -10 -9 -9 -8 -8 -7 --------- Run | Yrd Mat Mat Min Mat Gar Fac Total 3919 | 84 1349 504 331 433 833 385 Wait 147 | . 43 23 . 41 8 32 Move 3110 | 61 1172 373 325 291 613 275 Hop . | . . . . . . . Pick Up 88 | 3 24 22 1 12 17 9 Fast Attach 14 | 6 1 2 . 2 1 2 Attach 33 | . 2 4 . 4 13 10 Detach . | . . . . . . . Swap 59 | . 11 10 2 9 23 4 Drop 54 | . 10 16 1 11 9 7 Fire 346 | 14 84 54 2 63 85 44 Melee 23 | . . . . . 22 1 Ram . | . . . . . . . Kick . | . . . . . . . Crush 4 | . 2 . . . 1 1 Escape Stasis 7 | . . . . . 7 . Rewire 34 | . . . . . 34 . Trap . | . . . . . . . Miscellaneous . | . . . . . . . Route ------- -11/Scrapyard -10/Materials (discovered 4 exits: *Mat x3 / [*Min]) -9/Materials (discovered 3 exits: *Mat / *Min x2) -9/Mines -8/Materials (discovered 2 exits: *Sto / Gar) -8/Garrison (discovered 2 exits: *Fac x2) -7/Factory (discovered 2 exits: Low x2) History --------- Turn | Location | Event 19 | -11/Scrapyard | Discovered new exit (range 15) 144 | -11/Scrapyard | Entered Materials 304 | -10/Materials | Build established: Mutant 583 | -10/Materials | Discovered new exit (range 14) 734 | -10/Materials | Discovered new exit (range 4) 1574 | -10/Materials | Discovered new exit (range 11) 1917 | -10/Materials | Discovered new exit (range 10) 3641 | -10/Materials | Entered another Materials area 3641 | -9/Materials | Evolved 2 slots: Propulsion x1, Utility x1 4050 | -9/Materials | Discovered new exit (range 15) 4083 | -9/Materials | Identified exit to Materials 4227 | -9/Materials | Identified exit to Mines 4675 | -9/Materials | Entered Mines 4926 | -9/Mines | Received a Rocket Launcher from a helpful Derelict 5040 | -9/Mines | Learned Materials non-interactive machine intel 5128 | -9/Mines | Discovered exit to Materials (range 9) 5162 | -9/Mines | Assisted by bots powering up and referring to "LRC-V3" 5252 | -9/Mines | Learned Materials terminal intel 5433 | -9/Mines | Entered Materials 5433 | -8/Materials | Accompanied by 3 allies 5433 | -8/Materials | Evolved 2 slots: Utility x1, Weapon x1 5434 | -8/Materials | Identified exit to Storage 5435 | -8/Materials | Loaded intel: 32 non-interactive machine locations 5436 | -8/Materials | Loaded intel: 12 terminal locations 5961 | -8/Materials | Build established: Tank 6248 | -8/Materials | Garrison activated, responded to threat 6339 | -8/Materials | Identified exit to Garrison 6369 | -8/Materials | Entered Garrison 6433 | -8/Garrison | Triggered checkpoint 6597 | -8/Garrison | Triggered checkpoint 6743 | -8/Garrison | Triggered checkpoint 6806 | -8/Garrison | Lost 3 parts (1n1u1w) 6919 | -8/Garrison | Spotted B-75 Beast 6923 | -8/Garrison | Discovered new exit (range 14) 6977 | -8/Garrison | Triggered checkpoint 7026 | -8/Garrison | Core integrity fell below 50% 7056 | -8/Garrison | Lost 4 parts (2u2w) 7165 | -8/Garrison | Destroyed B-75 Beast 7244 | -8/Garrison | Rescued a captive Derelict 7256 | -8/Garrison | Rescued a captive Derelict 7271 | -8/Garrison | Garrison Relay disabled 7521 | -8/Garrison | Triggered checkpoint 7580 | -8/Garrison | Lost 3 allies 7593 | -8/Garrison | Triggered checkpoint 7827 | -8/Garrison | Triggered checkpoint 7912 | -8/Garrison | Core integrity fell below 20% 7944 | -8/Garrison | Lost 3 parts (2u1w) 7958 | -8/Garrison | Garrison Relay disabled 8024 | -8/Garrison | Discovered new exit (range 14) 8071 | -8/Garrison | Entered Factory 8071 | -7/Factory | Evolved 2 slots: Propulsion x1, Weapon x1 8226 | -7/Factory | Build established: Scavenger-Gunner 8559 | -7/Factory | Identified exit to Lower Caves 8619 | -7/Factory | Cargo convoy interrupted 8679 | -7/Factory | System corruption reached 10% 8680 | -7/Factory | Core integrity fell below 50% 8690 | -7/Factory | Core integrity fell below 20% 8701 | -7/Factory | Destroyed by P-60 Hacker with Shock Rifle Last Messages --------------- 08687_ U-05 Engineer builds a Wall. 08688_ U-05 Engineer lays Concrete. 08689_ K-01 Serf collects debris. 08690_ U-05 Engineer lays Concrete. 08692_ System corrupted: Rocket Launcher failed to launch. 08692_ Penetrated by Slug. 08692_ K-01 Serf collects debris. 08693_ P-60 Hacker resets K-01 Serf, system corruption cleaned. 08694_ U-05 Engineer lays Concrete. 08694_ T-07 Excavator destroyed. 08694_ Rocket Launcher destroyed. 08695_ U-05 Engineer lays Concrete. 08695_ Penetrated by Slug. 08696_ U-05 Engineer lays Concrete. 08697_ P-60 Hacker resets P-60 Hacker, system corruption cleaned. 08697_ X-57 Shotgunner knocked back. 08697_ U-05 Engineer lays Concrete. Map ----- +----------------------------------------------------+ | ?????????????????????????????????????????????????? | | ?????????????????????????????????????????????????? | | ?????????????????????????????????????????????????? | | ?????????????????????????????????????????????????? | | ?????????????????????????????????????????????????? | | ?????????????????????????????????????????????????? | | ?????????????????????????????????????????????????? | | ?????????????????????????????????????????????????? | | ?????????????????????????????????????????????????? | | ?????????????????????????????????????????????????? | | ?????????????????????????????????????????????????? | | ?????????????????????????????????????????????????? | | ?????????????????????????????????????????????????? | | ?????????????????????????????????????????????????? | | ?????????????????????????????????????????????????? | | ?????????????????????????????????????????????????? | | ?????????????????????????????????????????????????? | | ?????????????????????????????????????????????????? | | ?????????????? ????????????????????????????????? | | ???????????? ????????????????????????????????? | | ????????? + #???????????????>???????????????? | | ????????? # #???###?????????????????????????? | | ????????? # ##### #####?????????????????????? | | ????????? # # ##????????????????????? | | ????????? # #! #############????????? | | ?????????### #! @ #????????? | | ????????? # # ]= ! #????????? | | ????????? # # p p #????????? | | ????????? # + u =x! """ """ #????????? | | ????????? # # !i """ """ ?????????? | | ????????? # # hp ! """ """ ?????????? | | ??????? # # % "" "" ?????????? | | ????####+### # ! k " "" ?????????? | | ????# # ! |% % #????????? | | ????# %% i #????????? | | ????# % p # #????????? | | ????# # #????????? | | ????# " #############?????????? | | ????# #?????????????????????? | | ????# ## ########????????????? ?????? | | ????# ################# "?????? | | ????# "?????? | | ????# ########## "?????? | | ????# #????????# ??????? | | [ = #????????# ???????? | | ############+#######+############ ????????? | | ????????# ==*! #??# # #?????????? | | ????????# [! #??# # #?????????? | | ????????# """ [ [#??# # #?????????? | | ????????# """ [[[#??# # #?????????? | +----------------------------------------------------+ Best States ------------- Heat Dissipation 56 Energy Generation 14 Energy Capacity 280 Matter Stores 300 Matter Capacity 300 Sight Range 16 Terrain Scan Range 16 Terrain Scan Density 10 Armor Coverage 225 Evasion (%) 40 Targeting Accuracy 8 Recoil Reduction 2 Offensive Hacking 10 Item Schematics ----------------- None Robot Schematics ------------------ A-02 Transporter | -10/Materials | Hacked Fabricated ------------ Nothing Alien Tech Used ----------------- None Achievements -------------- None Challenges ------------ None Game ------ Seed ImpulseDispersionTendrils Manual? 0 Play Time 00:58:47 Cumulative 45.8 hours Start 2024.04.24 @ 23:13:41 End 2024.04.25 @ 10:24:06 Sessions 3 Manual Loads 0 Difficulty Rogue Special Mode None Game No. 60 Rogue 60 Adventurer 0 Explorer 0 Win Type - Total 1 Types 1/0/0/0/0/0/0/0/0 Lore% 27 Gallery% 42 Achievement% 31 Wizard Run 0 Options --------- Layout 1 ASCII 0 Keyboard 0 Movement Mouse Keybinds 0 Fullscreen 1 Font 16/SmallcapsGlow Map View 55x38 Zoom Use 0% Tactical HUD 1 Map Filters NONE Filters NONE Steam 1 RUN: 914936f5-2845-44a7-8e02-fdf0baa10a4f